Workbook

Sheet 铜山管道制作安装
A1: 附表三
A2: 投标报价明细表
A3: 工程名称：铜山矿区大凹山-寒山水泥用石灰岩980万吨/年露天开采建设（管道制作安装）工程劳务分包
A4: 序号 | B4: 项目名称 | C4: 项目特征描述 | D4: 单位 | E4: 工程量 | H4: 最高限价(元) | J4: 报价(元)
G5: 下浮比例 | H5: 最高限价 | I5: 合价 | J5: 单价 | K5: 合价
B6: 一、1～3#转运站
A7: 1.1 | B7: 1#转运站生产给水管系统
A8: 1 | B8: 低压碳钢管 | C8: 1.名称：焊接钢管 2.规格：DN20 3.材质：Q235 4.连接形式、焊接方法：电弧焊 | D8: m | E8: 9.2 | F8: 4.53 | G8: 12% | H8: 3.79 | I8: =H8*E8 -> 34.84
A9: 2 | B9: 低压碳钢管 | C9: 1.名称：焊接钢管 2.规格：DN32 3.材质：Q235 4.连接形式、焊接方法：电弧焊 | D9: m | E9: 7 | F9: 6.28 | G9: 12% | H9: 5.25 | I9: 36.75
A10: 3 | B10: 低压碳钢管 | C10: 1.名称：焊接钢管 2.规格：DN40 3.材质：Q235 4.连接形式、焊接方法：电弧焊 | D10: m | E10: 29.8 | F10: 6.96 | G10: 12% | H10: 5.82 | I10: 173.39
A11: 4 | B11: 管道压力试验 | C11: 1.规格、型号：DN50以下 2.压力等级：低压 3.管内介质：水 | D11: m | E11: 46 | F11: 3.89 | G11: 12% | H11: 3.25 | I11: 149.59
A12: 5 | B12: 管道系统吹扫 | C12: 1.规格、型号：DN50以下 2.管内介质：水 | D12: m | E12: 46 | F12: 2.87 | G12: 12% | H12: 2.40 | I12: 110.37
A13: 6 | B13: 低压碳钢管件 | C13: 1.名称：钢制弯头 2.规格：DN20 3.材质：Q235 4.连接方式：电弧焊 | D13: 个 | E13: 2 | F13: 20.29 | G13: 12% | H13: 16.96 | I13: 33.92
A14: 7 | B14: 低压碳钢管件 | C14: 1.名称：钢制弯头 2.规格：DN40 3.材质：Q235 4.连接方式：电弧焊 | D14: 个 | E14: 3 | F14: 40.84 | G14: 12% | H14: 34.14 | I14: 102.43
A15: 8 | B15: 低压碳钢管件 | C15: 1.名称：钢制三通 2.规格：DN32/DN20 3.材质：Q235 4.连接方式：电弧焊 | D15: 个 | E15: 2 | F15: 37.02 | G15: 12% | H15: 30.95 | I15: 61.90
A16: 9 | B16: 低压碳钢管件 | C16: 1.名称：钢制三通 2.规格：DN40/DN20 3.材质：Q235 4.连接方式：电弧焊 | D16: 个 | E16: 2 | F16: 46.64 | G16: 12% | H16: 38.99 | I16: 77.98
A17: 10 | B17: 低压碳钢管件 | C17: 1.名称：钢制三通 2.规格：DN40/DN40 3.材质：Q235 4.连接方式：电弧焊 | D17: 个 | E17: 1 | F17: 46.64 | G17: 12% | H17: 38.99 | I17: 38.99
A18: 11 | B18: 低压碳钢管件 | C18: 1.名称：钢制异径管 2.规格：DN32/DN20 3.材质：Q235 4.连接方式：电弧焊 | D18: 个 | E18: 2 | F18: 35.22 | G18: 12% | H18: 29.44 | I18: 58.89
A19: 12 | B19: 低压碳钢管件 | C19: 1.名称：钢制异径管 2.规格：DN40/DN32 3.材质：Q235 4.连接方式：电弧焊 | D19: 个 | E19: 2 | F19: 41.94 | G19: 12% | H19: 35.06 | I19: 70.12
A20: 13 | B20: 低压螺纹阀门 | C20: 1.名称：螺纹截止阀 2.材质：按设计 3.型号、规格：DN20 4.连接形式：螺纹连接 | D20: 个 | E20: 6 | F20: 33.93 | G20: 12% | H20: 28.37 | I20: 170.19
A21: 14 | B21: 低压碳钢管件 | C21: 1.名称：单头外丝接头 2.材质：Q235 3.规格：DN20 4.连接方式：电弧焊 | D21: 个 | E21: 12 | F21: 18.54 | G21: 12% | H21: 15.50 | I21: 185.99
A22: 15 | B22: 低压螺纹阀门 | C22: 1.名称：螺纹截止阀 2.材质：按设计 3.型号、规格：DN40 4.连接形式：螺纹连接 | D22: 个 | E22: 1 | F22: 50.49 | G22: 12% | H22: 42.21 | I22: 42.21
A23: 16 | B23: 低压碳钢管件 | C23: 1.名称：单头外丝接头 2.材质：Q235 3.规格：DN40 4.连接方式：电弧焊 | D23: 个 | E23: 2 | F23: 39.44 | G23: 12% | H23: 32.97 | I23: 65.94
A24: 17 | B24: 低压碳钢管件 | C24: 1.名称：双头外丝接头 2.材质：Q235 3.规格：DN40 4.连接方式：电弧焊 | D24: 个 | E24: 1 | F24: 39.83 | G24: 12% | H24: 33.30 | I24: 33.30
A25: 18 | B25: 低压碳钢管件 | C25: 1.名称：螺纹活接头 2.材质：Q235 3.规格：DN40 4.连接方式：电弧焊 | D25: 个 | E25: 1 | F25: 41.34 | G25: 12% | H25: 34.56 | I25: 34.56
A26: 19 | B26: 套管制作与安装 | C26: 1.名称：一般穿墙套管制作安装 2.材质：Q235 3.规格：DN50 | D26: 个 | E26: 2 | F26: 23.25 | G26: 12% | H26: 19.44 | I26: 38.87
A27: 20 | B27: 手工除锈 | C27: 1.除锈等级：St2 2.除锈内容：管道外表面 | D27: m2 | E27: 12.89 | F27: 2.78 | G27: 12% | H27: 2.32 | I27: 29.96
A28: 21 | B28: 埋地管道刷油 | C28: 1.油防腐方式：三油两布防腐，具体为环氧沥青底漆-面漆-玻璃丝布-面漆-玻璃丝布-面漆-面漆 2.漆膜厚度：干膜厚度＞0.4mm | D28: m2 | E28: 4.21 | F28: 71.35 | G28: 12% | H28: 59.65 | I28: 251.12
A29: 22 | B29: 明敷管道刷油 | C29: 1.油防腐方式：C53-31红丹醇酸防腐漆两遍及C04-42绿色醇酸磁漆两遍 2.漆膜厚度：按设计 | D29: m2 | E29: 8.68 | F29: 20.77 | G29: 12% | H29: 17.36 | I29: 150.72
A30: 23 | B30: 挖沟槽土方 | C30: 1.土壤类别：按设计 2.挖土深度：按设计 | D30: m3 | E30: 23 | F30: 3.49 | G30: 12% | H30: 2.92 | I30: 67.11
A31: 24 | B31: 回填方 | C31: 1.回填形式：沟槽回填 2.回填方式：就地回填，夯填 | D31: m3 | E31: 23 | F31: 14.29 | G31: 12% | H31: 11.95 | I31: 274.77
A32: 25 | B32: 混凝土阀门井 | C32: 1.名称：混凝土矩形阀门井 2.图集：05S502 3.井盖、井圈材质及规格：按设计 | D32: 座 | E32: 1 | F32: 10957.73 | G32: 12% | H32: 9160.66 | I32: 9160.66
A33: 1.2 | B33: 1#转运站生活给水系统
A34: 26 | B34: 塑料管 | C34: 1.名称：PE型钢塑给水管 2.安装部位：室内 3.介质：生活水 4.规格、压力等级：DN15 5.连接形式：电热熔 6.压力试验及吹洗设计要求：按设计 | D34: m | E34: 2 | F34: 47.35 | G34: 12% | H34: 39.58 | I34: =H34*E34 -> 79.17
A35: 27 | B35: 塑料管 | C35: 1.名称：PE型钢塑给水管 2.安装部位：室内 3.介质：生活水 4.规格、压力等级：DN25 5.连接形式：电热熔 6.压力试验及吹洗设计要求：按设计 | D35: m | E35: 17.6 | F35: 49.08 | G35: 12% | H35: 41.03 | I35: 722.14
A36: 28 | B36: 螺纹阀门 | C36: 1.名称：螺纹截止阀 2.材质：按设计 3.规格、压力等级：DN15 4.连接形式：电热熔 | D36: 个 | E36: 3 | F36: 13.27 | G36: 12% | H36: 11.09 | I36: 33.28
A37: 29 | B37: 螺纹阀门 | C37: 1.名称：螺纹截止阀 2.材质：按设计 3.规格、压力等级：DN25 4.连接形式：电热熔 | D37: 个 | E37: 1 | F37: 19.7 | G37: 12% | H37: 16.47 | I37: 16.47
A38: 30 | B38: 水表 | C38: 1.名称：螺纹水表 2.型号、规格：DN25 3.连接形式：螺纹连接 4.安装部位：室外: | D38: 个 | E38: 1 | F38: 89.05 | G38: 12% | H38: 74.45 | I38: 74.45
A39: 31 | B39: 螺纹阀门 | C39: 1.名称：自动排气阀 2.材质：按设计 3.规格、压力等级：DN15 4.连接形式：螺纹连接 | D39: 个 | E39: 1 | F39: 24.39 | G39: 12% | H39: 20.39 | I39: 20.39
A40: 32 | B40: 挖沟槽土方 | C40: 1.土壤类别：按设计 2.挖土深度：按设计 | D40: m3 | E40: 8 | F40: 3.49 | G40: 12% | H40: 2.92 | I40: 23.34
A41: 33 | B41: 回填方 | C41: 1.回填形式：沟槽回填 2.回填方式：就地回填，夯填 | D41: m3 | E41: 8 | F41: 14.29 | G41: 12% | H41: 11.95 | I41: 95.57
A42: 34 | B42: 套管制作与安装 | C42: 1.名称：一般穿墙套管制作安装 2.材质：Q235 3.规格：DN50 | D42: 个 | E42: 1 | F42: 23.25 | G42: 12% | H42: 19.44 | I42: 19.44
A43: 35 | B43: 混凝土阀门井 | C43: 1.名称：混凝土矩形阀门井 2.图集：05S502 3.井盖、井圈材质及规格：按设计 | D43: 座 | E43: 1 | F43: 10957.73 | G43: 12% | H43: 9160.66 | I43: 9160.66
A44: 1.3 | B44: 1#转运站排水系统
A45: 36 | B45: 塑料管 | C45: 1.名称：塑料排水管 2.安装部位：室外 3.介质：污水 4.规格、压力等级：De110 5.连接形式：粘接 | D45: m | E45: 24 | F45: 7.42 | G45: 12% | H45: 6.20 | I45: =H45*E45 -> 148.87
A46: 37 | B46: 给、排水附（配）件 | C46: 1.名称：地漏 3.材质：按设计 3.型号、规格：De110 4.安装方式：粘接 | D46: 个 | E46: 6 | F46: 50.25 | G46: 12% | H46: 42.01 | I46: =H46*E46 -> 252.05
A47: 1.4 | B47: 1#转运站排废水系统
A48: 38 | B48: 离心泵 | C48: 1.名称：不锈钢潜污泵 2.规格型号：Q=10m3/h，H=40m | D48: 台 | E48: 1 | F48: 554.28 | G48: 12% | H48: 463.38 | I48: =H48*E48 -> 463.38
A49: 39 | B49: 低压碳钢管 | C49: 1.名称：焊接钢管 2.规格：DN65 3.材质：Q235 4.连接形式、焊接方法：电弧焊 | D49: m | E49: 14 | F49: 10.6 | G49: 12% | H49: 8.86 | I49: 124.06
A50: 40 | B50: 管道压力试验 | C50: 1.规格、型号：DN50以上，DN100以下 2.压力等级：低压 3.管内介质：水 | D50: m | E50: 14 | F50: 4.85 | G50: 12% | H50: 4.05 | I50: 56.76
A51: 41 | B51: 管道系统吹扫 | C51: 1.规格、型号：DN50以上，DN100以下 2.管内介质：水 | D51: m | E51: 14 | F51: 3.98 | G51: 12% | H51: 3.33 | I51: 46.58
A52: 42 | B52: 低压碳钢管件 | C52: 1.名称：钢制弯头 2.规格：DN65 3.材质：Q235 4.连接方式：电弧焊 | D52: 个 | E52: 4 | F52: 75.69 | G52: 12% | H52: 63.28 | I52: 253.11
A53: 43 | B53: 低压法兰阀门 | C53: 1.名称：法兰截止阀 2.材质：按设计 3.型号、规格：DN65 4.连接形式：法兰连接 | D53: 个 | E53: 1 | F53: 54.2 | G53: 12% | H53: 45.31 | I53: 45.31
A54: 44 | B54: 低压法兰阀门 | C54: 1.名称：法兰止回阀 2.材质：按设计 3.型号、规格：DN65 4.连接形式：法兰连接 | D54: 个 | E54: 1 | F54: 54.2 | G54: 12% | H54: 45.31 | I54: 45.31
A55: 45 | B55: 低压碳钢焊接法兰 | C55: 1.名称：碳钢法兰 2.材质：20# 3.结构形式：按设计 4.型号、规格：DN65 5.焊接方法：电弧焊 6.连接形式：与阀门连接 7.其他：配套法兰垫片、螺栓、螺母、垫圈 | D55: 副 | E55: 2 | F55: 111.76 | G55: 12% | H55: 93.43 | I55: 186.86
A56: 46 | B56: 低压碳钢焊接法兰 | C56: 1.名称：碳钢法兰 2.材质：Q235 3.结构形式：按设计 4.型号、规格：DN65 5.焊接方法：电弧焊 6.连接形式：与设备本体法兰对接 7.其他：配套法兰垫片、螺栓、螺母、垫圈 | D56: 副 | E56: 1 | F56: 62.53 | G56: 12% | H56: 52.28 | I56: 52.28
A57: 47 | B57: 套管制作与安装 | C57: 1.名称：一般穿墙套管 2.材质：Q235 3.规格：DN65 | D57: 个 | E57: 1 | F57: 56.94 | G57: 12% | H57: 47.60 | I57: 47.60
A58: 48 | B58: 手工除锈 | C58: 1.除锈等级：St2 2.除锈内容：管道外表面 | D58: m2 | E58: 3.34 | F58: 2.78 | G58: 12% | H58: 2.32 | I58: 7.76
A59: 49 | B59: 埋地管道刷油 | C59: 1.油防腐方式：三油两布防腐，具体为环氧沥青底漆-面漆-玻璃丝布-面漆-玻璃丝布-面漆-面漆 2.漆膜厚度：干膜厚度＞0.4mm | D59: m2 | E59: 2.1 | F59: 71.35 | G59: 12% | H59: 59.65 | I59: 125.26
A60: 50 | B60: 明敷管道刷油 | C60: 1.油防腐方式：C53-31红丹醇酸防腐漆两遍及C04-42绿色醇酸磁漆两遍 2.漆膜厚度：按设计 | D60: m2 | E60: 1.24 | F60: 20.77 | G60: 12% | H60: 17.36 | I60: 21.53
A61: 51 | B61: 挖沟槽土方 | C61: 1.土壤类别：按设计 2.挖土深度：按设计 | D61: m3 | E61: 4 | F61: 3.49 | G61: 12% | H61: 2.92 | I61: 11.67
A62: 52 | B62: 回填方 | C62: 1.回填形式：沟槽回填 2.回填方式：就地回填，夯填 | D62: m3 | E62: 4 | F62: 14.29 | G62: 12% | H62: 11.95 | I62: 47.79
A63: 1.5 | B63: 2#转运站生产给水管系统
A64: 53 | B64: 低压碳钢管 | C64: 1.名称：焊接钢管 2.规格：DN20 3.材质：Q235 4.连接形式、焊接方法：电弧焊 | D64: m | E64: 8.5 | F64: 4.53 | G64: 12% | H64: 3.79 | I64: =H64*E64 -> 32.19
A65: 54 | B65: 低压碳钢管 | C65: 1.名称：焊接钢管 2.规格：DN32 3.材质：Q235 4.连接形式、焊接方法：电弧焊 | D65: m | E65: 32 | F65: 6.28 | G65: 12% | H65: 5.25 | I65: 168.00
A66: 55 | B66: 管道压力试验 | C66: 1.规格、型号：DN50以下 2.压力等级：低压 3.管内介质：水 | D66: m | E66: 40.5 | F66: 3.89 | G66: 12% | H66: 3.25 | I66: 131.71
A67: 56 | B67: 管道系统吹扫 | C67: 1.规格、型号：DN50以下 2.管内介质：水 | D67: m | E67: 40.5 | F67: 2.87 | G67: 12% | H67: 2.40 | I67: 97.17
A68: 57 | B68: 低压碳钢管件 | C68: 1.名称：钢制弯头 2.规格：DN20 3.材质：Q235 4.连接方式：电弧焊 | D68: 个 | E68: 4 | F68: 20.29 | G68: 12% | H68: 16.96 | I68: 67.85
A69: 58 | B69: 低压碳钢管件 | C69: 1.名称：钢制弯头 2.规格：DN32 3.材质：Q235 4.连接方式：电弧焊 | D69: 个 | E69: 1 | F69: 34.22 | G69: 12% | H69: 28.61 | I69: 28.61
A70: 59 | B70: 低压碳钢管件 | C70: 1.名称：钢制三通 2.规格：DN32/DN32 3.材质：Q235 4.连接方式：电弧焊 | D70: 个 | E70: 3 | F70: 37.02 | G70: 12% | H70: 30.95 | I70: 92.85
A71: 60 | B71: 低压碳钢管件 | C71: 1.名称：钢制异径管 2.规格：DN32/DN20 3.材质：Q235 4.连接方式：电弧焊 | D71: 个 | E71: 4 | F71: 35.22 | G71: 12% | H71: 29.44 | I71: 117.78
A72: 61 | B72: 低压螺纹阀门 | C72: 1.名称：螺纹截止阀 2.材质：按设计 3.型号、规格：DN20 4.连接形式：螺纹连接 | D72: 个 | E72: 4 | F72: 33.93 | G72: 12% | H72: 28.37 | I72: 113.46
A73: 62 | B73: 低压碳钢管件 | C73: 1.名称：单头外丝接头 2.材质：Q235 3.规格：DN20 4.连接方式：电弧焊 | D73: 个 | E73: 8 | F73: 18.54 | G73: 12% | H73: 15.50 | I73: 124.00
A74: 63 | B74: 低压螺纹阀门 | C74: 1.名称：螺纹截止阀 2.材质：按设计 3.型号、规格：DN32 4.连接形式：螺纹连接 | D74: 个 | E74: 1 | F74: 46.12 | G74: 12% | H74: 38.56 | I74: 38.56
A75: 64 | B75: 低压碳钢管件 | C75: 1.名称：单头外丝接头 2.材质：Q235 3.规格：DN32 4.连接方式：电弧焊 | D75: 个 | E75: 2 | F75: 33.32 | G75: 12% | H75: 27.86 | I75: 55.71
A76: 65 | B76: 低压碳钢管件 | C76: 1.名称：双头外丝接头 2.材质：Q235 3.规格：DN32 4.连接方式：电弧焊 | D76: 个 | E76: 1 | F76: 31.83 | G76: 12% | H76: 26.61 | I76: 26.61
A77: 66 | B77: 低压碳钢管件 | C77: 1.名称：螺纹活接头 2.材质：Q235 3.规格：DN32 4.连接方式：电弧焊 | D77: 个 | E77: 1 | F77: 33.4 | G77: 12% | H77: 27.92 | I77: 27.92
A78: 67 | B78: 套管制作与安装 | C78: 1.名称：一般穿墙套管制作安装 2.材质：Q235 3.规格：DN50 | D78: 个 | E78: 2 | F78: 23.25 | G78: 12% | H78: 19.44 | I78: 38.87
A79: 68 | B79: 手工除锈 | C79: 1.除锈等级：St2 2.除锈内容：管道外表面 | D79: m2 | E79: 4.49 | F79: 2.78 | G79: 12% | H79: 2.32 | I79: 10.44
A80: 69 | B80: 埋地管道刷油 | C80: 1.油防腐方式：三油两布防腐，具体为环氧沥青底漆-面漆-玻璃丝布-面漆-玻璃丝布-面漆-面漆 2.漆膜厚度：干膜厚度＞0.4mm | D80: m2 | E80: 3.82 | F80: 71.35 | G80: 12% | H80: 59.65 | I80: 227.86
A81: 70 | B81: 明敷管道刷油 | C81: 1.油防腐方式：C53-31红丹醇酸防腐漆两遍及C04-42绿色醇酸磁漆两遍 2.漆膜厚度：按设计 | D81: m2 | E81: 0.67 | F81: 20.77 | G81: 12% | H81: 17.36 | I81: 11.63
A82: 71 | B82: 挖沟槽土方 | C82: 1.土壤类别：按设计 2.挖土深度：按设计 | D82: m3 | E82: 23 | F82: 3.49 | G82: 12% | H82: 2.92 | I82: 67.11
A83: 72 | B83: 回填方 | C83: 1.回填形式：沟槽回填 2.回填方式：就地回填，夯填 | D83: m3 | E83: 23 | F83: 14.29 | G83: 12% | H83: 11.95 | I83: 274.77
A84: 73 | B84: 混凝土阀门井 | C84: 1.名称：混凝土矩形阀门井 2.图集：05S502 3.井盖、井圈材质及规格：按设计 | D84: 座 | E84: 1 | F84: 10957.73 | G84: 12% | H84: 9160.66 | I84: 9160.66
A85: 1.6 | B85: 2#转运站生活给水系统
A86: 74 | B86: 塑料管 | C86: 1.名称：PE型钢塑给水管 2.安装部位：室内 3.介质：生活水 4.规格、压力等级：DN15 5.连接形式：电热熔 6.压力试验及吹洗设计要求：按设计 | D86: m | E86: 4.5 | F86: 47.35 | G86: 12% | H86: 39.58 | I86: =H86*E86 -> 178.13
A87: 75 | B87: 塑料管 | C87: 1.名称：PE型钢塑给水管 2.安装部位：室内 3.介质：生活水 4.规格、压力等级：DN25 5.连接形式：电热熔 6.压力试验及吹洗设计要求：按设计 | D87: m | E87: 3.3 | F87: 49.08 | G87: 12% | H87: 41.03 | I87: 135.40
A88: 76 | B88: 螺纹阀门 | C88: 1.名称：螺纹截止阀 2.材质：按设计 3.规格、压力等级：DN15 4.连接形式：电热熔 | D88: 个 | E88: 2 | F88: 13.27 | G88: 12% | H88: 11.09 | I88: 22.19
A89: 77 | B89: 螺纹阀门 | C89: 1.名称：螺纹截止阀 2.材质：按设计 3.规格、压力等级：DN25 4.连接形式：电热熔 | D89: 个 | E89: 1 | F89: 19.7 | G89: 12% | H89: 16.47 | I89: 16.47
A90: 78 | B90: 水表 | C90: 1.名称：螺纹水表 2.型号、规格：DN25 3.连接形式：螺纹连接 4.安装部位：室外: | D90: 个 | E90: 1 | F90: 89.05 | G90: 12% | H90: 74.45 | I90: 74.45
A91: 79 | B91: 挖沟槽土方 | C91: 1.土壤类别：按设计 2.挖土深度：按设计 | D91: m3 | E91: 3 | F91: 3.49 | G91: 12% | H91: 2.92 | I91: 8.75
A92: 80 | B92: 回填方 | C92: 1.回填形式：沟槽回填 2.回填方式：就地回填，夯填 | D92: m3 | E92: 3 | F92: 14.29 | G92: 12% | H92: 11.95 | I92: 35.84
A93: 81 | B93: 套管制作与安装 | C93: 1.名称：一般穿墙套管制作安装 2.材质：Q235 3.规格：DN50 | D93: 个 | E93: 1 | F93: 23.25 | G93: 12% | H93: 19.44 | I93: 19.44
A94: 82 | B94: 混凝土阀门井 | C94: 1.名称：混凝土矩形阀门井 2.图集：05S502 3.井盖、井圈材质及规格：按设计 | D94: 座 | E94: 1 | F94: 10957.73 | G94: 12% | H94: 9160.66 | I94: 9160.66
A95: 1.7 | B95: 2#转运站排水系统
A96: 83 | B96: 塑料管 | C96: 1.名称：塑料排水管 2.安装部位：室外 3.介质：污水 4.规格、压力等级：De110 5.连接形式：粘接 | D96: m | E96: 16 | F96: 7.42 | G96: 12% | H96: 6.20 | I96: =H96*E96 -> 99.25
A97: 84 | B97: 给、排水附（配）件 | C97: 1.名称：地漏 3.材质：按设计 3.型号、规格：De110 4.安装方式：粘接 | D97: 个 | E97: 4 | F97: 50.25 | G97: 12% | H97: 42.01 | I97: =H97*E97 -> 168.04
A98: 1.8 | B98: 2#转运站排废水系统
A99: 85 | B99: 离心泵 | C99: 1.名称：不锈钢潜污泵 2.规格型号：Q=10m3/h，H=40m | D99: 台 | E99: 1 | F99: 554.28 | G99: 12% | H99: 463.38 | I99: =H99*E99 -> 463.38
A100: 86 | B100: 低压碳钢管 | C100: 1.名称：焊接钢管 2.规格：DN65 3.材质：Q235 4.连接形式、焊接方法：电弧焊 | D100: m | E100: 4.5 | F100: 10.6 | G100: 12% | H100: 8.86 | I100: 39.88
A101: 87 | B101: 管道压力试验 | C101: 1.规格、型号：DN50以上，DN100以下 2.压力等级：低压 3.管内介质：水 | D101: m | E101: 4.5 | F101: 4.85 | G101: 12% | H101: 4.05 | I101: 18.25
A102: 88 | B102: 管道系统吹扫 | C102: 1.规格、型号：DN50以上，DN100以下 2.管内介质：水 | D102: m | E102: 4.5 | F102: 3.98 | G102: 12% | H102: 3.33 | I102: 14.97
A103: 89 | B103: 低压碳钢管件 | C103: 1.名称：钢制弯头 2.规格：DN65 3.材质：Q235 4.连接方式：电弧焊 | D103: 个 | E103: 2 | F103: 75.69 | G103: 12% | H103: 63.28 | I103: 126.55
A104: 90 | B104: 低压法兰阀门 | C104: 1.名称：法兰截止阀 2.材质：按设计 3.型号、规格：DN65 4.连接形式：法兰连接 | D104: 个 | E104: 1 | F104: 54.2 | G104: 12% | H104: 45.31 | I104: 45.31
A105: 91 | B105: 低压法兰阀门 | C105: 1.名称：法兰止回阀 2.材质：按设计 3.型号、规格：DN65 4.连接形式：法兰连接 | D105: 个 | E105: 1 | F105: 54.2 | G105: 12% | H105: 45.31 | I105: 45.31
A106: 92 | B106: 低压碳钢焊接法兰 | C106: 1.名称：碳钢法兰 2.材质：20# 3.结构形式：按设计 4.型号、规格：DN65 5.焊接方法：电弧焊 6.连接形式：与阀门连接 7.其他：配套法兰垫片、螺栓、螺母、垫圈 | D106: 副 | E106: 2 | F106: 111.76 | G106: 12% | H106: 93.43 | I106: 186.86
A107: 93 | B107: 低压碳钢焊接法兰 | C107: 1.名称：碳钢法兰 2.材质：Q235 3.结构形式：按设计 4.型号、规格：DN65 5.焊接方法：电弧焊 6.连接形式：与设备本体法兰对接 7.其他：配套法兰垫片、螺栓、螺母、垫圈 | D107: 副 | E107: 1 | F107: 62.53 | G107: 12% | H107: 52.28 | I107: 52.28
A108: 94 | B108: 套管制作与安装 | C108: 1.名称：一般穿墙套管 2.材质：Q235 3.规格：DN65 | D108: 个 | E108: 1 | F108: 56.94 | G108: 12% | H108: 47.60 | I108: 47.60
A109: 95 | B109: 手工除锈 | C109: 1.除锈等级：St2 2.除锈内容：管道外表面 | D109: m2 | E109: 1.1 | F109: 2.78 | G109: 12% | H109: 2.32 | I109: 2.56
A110: 96 | B110: 埋地管道刷油 | C110: 1.油防腐方式：三油两布防腐，具体为环氧沥青底漆-面漆-玻璃丝布-面漆-玻璃丝布-面漆-面漆 2.漆膜厚度：干膜厚度＞0.4mm | D110: m2 | E110: 0.6 | F110: 71.35 | G110: 12% | H110: 59.65 | I110: 35.79
A111: 97 | B111: 明敷管道刷油 | C111: 1.油防腐方式：C53-31红丹醇酸防腐漆两遍及C04-42绿色醇酸磁漆两遍 2.漆膜厚度：按设计 | D111: m2 | E111: 0.5 | F111: 20.77 | G111: 12% | H111: 17.36 | I111: 8.68
A112: 98 | B112: 挖沟槽土方 | C112: 1.土壤类别：按设计 2.挖土深度：按设计 | D112: m3 | E112: 5 | F112: 3.49 | G112: 12% | H112: 2.92 | I112: 14.59
A113: 99 | B113: 回填方 | C113: 1.回填形式：沟槽回填 2.回填方式：就地回填，夯填 | D113: m3 | E113: 5 | F113: 14.29 | G113: 12% | H113: 11.95 | I113: 59.73
A114: 1.9 | B114: 3#转运站生产给水管系统
A115: 100 | B115: 低压碳钢管 | C115: 1.名称：焊接钢管 2.规格：DN20 3.材质：Q235 4.连接形式、焊接方法：电弧焊 | D115: m | E115: 13.5 | F115: 4.53 | G115: 12% | H115: 3.79 | I115: =H115*E115 -> 51.13
A116: 101 | B116: 低压碳钢管 | C116: 1.名称：焊接钢管 2.规格：DN32 3.材质：Q235 4.连接形式、焊接方法：电弧焊 | D116: m | E116: 42.5 | F116: 6.28 | G116: 12% | H116: 5.25 | I116: 223.13
A117: 102 | B117: 管道压力试验 | C117: 1.规格、型号：DN50以下 2.压力等级：低压 3.管内介质：水 | D117: m | E117: 56 | F117: 3.89 | G117: 12% | H117: 3.25 | I117: 182.11
A118: 103 | B118: 管道系统吹扫 | C118: 1.规格、型号：DN50以下 2.管内介质：水 | D118: m | E118: 56 | F118: 2.87 | G118: 12% | H118: 2.40 | I118: 134.36
A119: 104 | B119: 低压碳钢管件 | C119: 1.名称：钢制弯头 2.规格：DN20 3.材质：Q235 4.连接方式：电弧焊 | D119: 个 | E119: 6 | F119: 20.29 | G119: 12% | H119: 16.96 | I119: 101.77
A120: 105 | B120: 低压碳钢管件 | C120: 1.名称：钢制弯头 2.规格：DN32 3.材质：Q235 4.连接方式：电弧焊 | D120: 个 | E120: 1 | F120: 34.22 | G120: 12% | H120: 28.61 | I120: 28.61
A121: 106 | B121: 低压碳钢管件 | C121: 1.名称：钢制三通 2.规格：DN32/DN32 3.材质：Q235 4.连接方式：电弧焊 | D121: 个 | E121: 5 | F121: 37.02 | G121: 12% | H121: 30.95 | I121: 154.74
A122: 107 | B122: 低压碳钢管件 | C122: 1.名称：钢制异径管 2.规格：DN32/DN20 3.材质：Q235 4.连接方式：电弧焊 | D122: 个 | E122: 6 | F122: 35.22 | G122: 12% | H122: 29.44 | I122: 176.66
A123: 108 | B123: 低压螺纹阀门 | C123: 1.名称：螺纹截止阀 2.材质：按设计 3.型号、规格：DN20 4.连接形式：螺纹连接 | D123: 个 | E123: 6 | F123: 33.93 | G123: 12% | H123: 28.37 | I123: 170.19
A124: 109 | B124: 低压碳钢管件 | C124: 1.名称：单头外丝接头 2.材质：Q235 3.规格：DN20 4.连接方式：电弧焊 | D124: 个 | E124: 12 | F124: 18.54 | G124: 12% | H124: 15.50 | I124: 185.99
A125: 110 | B125: 低压螺纹阀门 | C125: 1.名称：螺纹截止阀 2.材质：按设计 3.型号、规格：DN32 4.连接形式：螺纹连接 | D125: 个 | E125: 1 | F125: 46.12 | G125: 12% | H125: 38.56 | I125: 38.56
A126: 111 | B126: 低压碳钢管件 | C126: 1.名称：单头外丝接头 2.材质：Q235 3.规格：DN32 4.连接方式：电弧焊 | D126: 个 | E126: 2 | F126: 33.32 | G126: 12% | H126: 27.86 | I126: 55.71
A127: 112 | B127: 低压碳钢管件 | C127: 1.名称：双头外丝接头 2.材质：Q235 3.规格：DN32 4.连接方式：电弧焊 | D127: 个 | E127: 1 | F127: 31.83 | G127: 12% | H127: 26.61 | I127: 26.61
A128: 113 | B128: 低压碳钢管件 | C128: 1.名称：螺纹活接头 2.材质：Q235 3.规格：DN32 4.连接方式：电弧焊 | D128: 个 | E128: 1 | F128: 33.4 | G128: 12% | H128: 27.92 | I128: 27.92
A129: 114 | B129: 套管制作与安装 | C129: 1.名称：一般穿墙套管制作安装 2.材质：Q235 3.规格：DN50 | D129: 个 | E129: 3 | F129: 23.25 | G129: 12% | H129: 19.44 | I129: 58.31
A130: 115 | B130: 手工除锈 | C130: 1.除锈等级：St2 2.除锈内容：管道外表面 | D130: m2 | E130: 6.13 | F130: 2.78 | G130: 12% | H130: 2.32 | I130: 14.25
A131: 116 | B131: 埋地管道刷油 | C131: 1.油防腐方式：三油两布防腐，具体为环氧沥青底漆-面漆-玻璃丝布-面漆-玻璃丝布-面漆-面漆 2.漆膜厚度：干膜厚度＞0.4mm | D131: m2 | E131: 4.21 | F131: 71.35 | G131: 12% | H131: 59.65 | I131: 251.12
A132: 117 | B132: 明敷管道刷油 | C132: 1.油防腐方式：C53-31红丹醇酸防腐漆两遍及C04-42绿色醇酸磁漆两遍 2.漆膜厚度：按设计 | D132: m2 | E132: 1.92 | F132: 20.77 | G132: 12% | H132: 17.36 | I132: 33.34
A133: 118 | B133: 挖沟槽土方 | C133: 1.土壤类别：按设计 2.挖土深度：按设计 | D133: m3 | E133: 30.6 | F133: 3.49 | G133: 12% | H133: 2.92 | I133: 89.28
A134: 119 | B134: 回填方 | C134: 1.回填形式：沟槽回填 2.回填方式：就地回填，夯填 | D134: m3 | E134: 30.6 | F134: 14.29 | G134: 12% | H134: 11.95 | I134: 365.56
A135: 120 | B135: 混凝土阀门井 | C135: 1.名称：混凝土矩形阀门井 2.图集：05S502 3.井盖、井圈材质及规格：按设计 | D135: 座 | E135: 1 | F135: 10957.73 | G135: 12% | H135: 9160.66 | I135: 9160.66
A136: 1.10 | B136: 3#转运站生活给水系统
A137: 121 | B137: 塑料管 | C137: 1.名称：PE型钢塑给水管 2.安装部位：室内 3.介质：生活水 4.规格、压力等级：DN15 5.连接形式：电热熔 6.压力试验及吹洗设计要求：按设计 | D137: m | E137: 4.5 | F137: 47.35 | G137: 12% | H137: 39.58 | I137: =H137*E137 -> 178.13
A138: 122 | B138: 塑料管 | C138: 1.名称：PE型钢塑给水管 2.安装部位：室内 3.介质：生活水 4.规格、压力等级：DN25 5.连接形式：电热熔 6.压力试验及吹洗设计要求：按设计 | D138: m | E138: 3.3 | F138: 49.08 | G138: 12% | H138: 41.03 | I138: 135.40
A139: 123 | B139: 螺纹阀门 | C139: 1.名称：螺纹截止阀 2.材质：按设计 3.规格、压力等级：DN15 4.连接形式：电热熔 | D139: 个 | E139: 2 | F139: 13.27 | G139: 12% | H139: 11.09 | I139: 22.19
A140: 124 | B140: 螺纹阀门 | C140: 1.名称：螺纹截止阀 2.材质：按设计 3.规格、压力等级：DN25 4.连接形式：电热熔 | D140: 个 | E140: 1 | F140: 19.7 | G140: 12% | H140: 16.47 | I140: 16.47
A141: 125 | B141: 水表 | C141: 1.名称：螺纹水表 2.型号、规格：DN25 3.连接形式：螺纹连接 4.安装部位：室外: | D141: 个 | E141: 1 | F141: 89.05 | G141: 12% | H141: 74.45 | I141: 74.45
A142: 126 | B142: 挖沟槽土方 | C142: 1.土壤类别：按设计 2.挖土深度：按设计 | D142: m3 | E142: 3 | F142: 3.49 | G142: 12% | H142: 2.92 | I142: 8.75
A143: 127 | B143: 回填方 | C143: 1.回填形式：沟槽回填 2.回填方式：就地回填，夯填 | D143: m3 | E143: 3 | F143: 14.29 | G143: 12% | H143: 11.95 | I143: 35.84
A144: 128 | B144: 套管制作与安装 | C144: 1.名称：一般穿墙套管制作安装 2.材质：Q235 3.规格：DN50 | D144: 个 | E144: 1 | F144: 23.25 | G144: 12% | H144: 19.44 | I144: 19.44
A145: 129 | B145: 混凝土阀门井 | C145: 1.名称：混凝土矩形阀门井 2.图集：05S502 3.井盖、井圈材质及规格：按设计 | D145: 座 | E145: 1 | F145: 10957.73 | G145: 12% | H145: 9160.66 | I145: 9160.66
A146: 1.11 | B146: 3#转运站排水系统
A147: 130 | B147: 塑料管 | C147: 1.名称：塑料排水管 2.安装部位：室外 3.介质：污水 4.规格、压力等级：De110 5.连接形式：粘接 | D147: m | E147: 20 | F147: 7.42 | G147: 12% | H147: 6.20 | I147: =H147*E147 -> 124.06
A148: 131 | B148: 给、排水附（配）件 | C148: 1.名称：地漏 3.材质：按设计 3.型号、规格：De110 4.安装方式：粘接 | D148: 个 | E148: 5 | F148: 50.25 | G148: 12% | H148: 42.01 | I148: =H148*E148 -> 210.05
A149: 1.12 | B149: 3#转运站排废水系统
A150: 132 | B150: 离心泵 | C150: 1.名称：不锈钢潜污泵 2.规格型号：Q=10m3/h，H=40m | D150: 台 | E150: 1 | F150: 554.28 | G150: 12% | H150: 463.38 | I150: =H150*E150 -> 463.38
A151: 133 | B151: 低压碳钢管 | C151: 1.名称：焊接钢管 2.规格：DN65 3.材质：Q235 4.连接形式、焊接方法：电弧焊 | D151: m | E151: 4.5 | F151: 10.6 | G151: 12% | H151: 8.86 | I151: 39.88
A152: 134 | B152: 管道压力试验 | C152: 1.规格、型号：DN50以上，DN100以下 2.压力等级：低压 3.管内介质：水 | D152: m | E152: 4.5 | F152: 4.85 | G152: 12% | H152: 4.05 | I152: 18.25
A153: 135 | B153: 管道系统吹扫 | C153: 1.规格、型号：DN50以上，DN100以下 2.管内介质：水 | D153: m | E153: 4.5 | F153: 3.98 | G153: 12% | H153: 3.33 | I153: 14.97
A154: 136 | B154: 低压碳钢管件 | C154: 1.名称：钢制弯头 2.规格：DN65 3.材质：Q235 4.连接方式：电弧焊 | D154: 个 | E154: 2 | F154: 75.69 | G154: 12% | H154: 63.28 | I154: 126.55
A155: 137 | B155: 低压法兰阀门 | C155: 1.名称：法兰截止阀 2.材质：按设计 3.型号、规格：DN65 4.连接形式：法兰连接 | D155: 个 | E155: 1 | F155: 54.2 | G155: 12% | H155: 45.31 | I155: 45.31
A156: 138 | B156: 低压法兰阀门 | C156: 1.名称：法兰止回阀 2.材质：按设计 3.型号、规格：DN65 4.连接形式：法兰连接 | D156: 个 | E156: 1 | F156: 54.2 | G156: 12% | H156: 45.31 | I156: 45.31
A157: 139 | B157: 低压碳钢焊接法兰 | C157: 1.名称：碳钢法兰 2.材质：20# 3.结构形式：按设计 4.型号、规格：DN65 5.焊接方法：电弧焊 6.连接形式：与阀门连接 7.其他：配套法兰垫片、螺栓、螺母、垫圈 | D157: 副 | E157: 2 | F157: 111.76 | G157: 12% | H157: 93.43 | I157: 186.86
A158: 140 | B158: 低压碳钢焊接法兰 | C158: 1.名称：碳钢法兰 2.材质：Q235 3.结构形式：按设计 4.型号、规格：DN65 5.焊接方法：电弧焊 6.连接形式：与设备本体法兰对接 7.其他：配套法兰垫片、螺栓、螺母、垫圈 | D158: 副 | E158: 1 | F158: 62.53 | G158: 12% | H158: 52.28 | I158: 52.28
A159: 141 | B159: 套管制作与安装 | C159: 1.名称：一般穿墙套管 2.材质：Q235 3.规格：DN65 | D159: 个 | E159: 1 | F159: 56.94 | G159: 12% | H159: 47.60 | I159: 47.60
A160: 142 | B160: 动力工具除锈 | C160: 1.除锈等级：St2 2.除锈内容：管道外表面 | D160: m2 | E160: 1.1 | F160: 2.78 | G160: 12% | H160: 2.32 | I160: 2.56
A161: 143 | B161: 埋地管道刷油 | C161: 1.油防腐方式：三油两布防腐，具体为环氧沥青底漆-面漆-玻璃丝布-面漆-玻璃丝布-面漆-面漆 2.漆膜厚度：干膜厚度＞0.4mm | D161: m2 | E161: 0.6 | F161: 71.35 | G161: 12% | H161: 59.65 | I161: 35.79
A162: 144 | B162: 明敷管道刷油 | C162: 1.油防腐方式：C53-31红丹醇酸防腐漆两遍及C04-42绿色醇酸磁漆两遍 2.漆膜厚度：按设计 | D162: m2 | E162: 0.5 | F162: 20.77 | G162: 12% | H162: 17.36 | I162: 8.68
A163: 145 | B163: 挖沟槽土方 | C163: 1.土壤类别：按设计 2.挖土深度：按设计 | D163: m3 | E163: 5 | F163: 3.49 | G163: 12% | H163: 2.92 | I163: 14.59
A164: 146 | B164: 回填方 | C164: 1.回填形式：沟槽回填 2.回填方式：就地回填，夯填 | D164: m3 | E164: 5 | F164: 14.29 | G164: 12% | H164: 11.95 | I164: 59.73
A165: 1.13 | B165: 消防系统
A166: 147 | B166: 灭火器 | C166: 1.名称：磷酸铵盐手提式灭火器 2.形式：按设计 3.规格、型号：MF/ABC3 | D166: 具 | E166: 24 | F166: 46.76 | G166: 12% | H166: 39.09 | I166: =H166*E166 -> 938.19
A167: 148 | B167: 灭火器箱 | C167: 1.名称：手提式灭火器箱 2.形式：按设计 3.规格、型号：每个灭火器箱内设置2具灭火器 | D167: 个 | E167: 12 | F167: 35.92 | G167: 12% | H167: 30.03 | I167: =H167*E167 -> 360.35
A168: 149 | B168: 大型机械设备进出场及安拆 | C168: 1.机械设备名称：履带式挖掘机等 2.机械设备规格型号：自定 | D168: 台次 | E168: 1 | F168: 13082.78 | G168: 12% | H168: 10937.20 | I168: =H168*E168 -> 10937.20
B169: 二、半成品库
A170: 2.1 | B170: 半成品库生产水系统
A171: 150 | B171: 低压碳钢管 | C171: 1.名称：焊接钢管 2.规格：DN20 3.材质：Q235 4.连接形式、焊接方法：电弧焊 | D171: m | E171: 79.1 | F171: 4.53 | G171: 12% | H171: 3.79 | I171: =H171*E171 -> 299.56
A172: 151 | B172: 低压碳钢管 | C172: 1.名称：焊接钢管 2.规格：DN32 3.材质：Q235 4.连接形式、焊接方法：电弧焊 | D172: m | E172: 16 | F172: 6.28 | G172: 12% | H172: 5.25 | I172: 84.00
A173: 152 | B173: 低压碳钢管 | C173: 1.名称：焊接钢管 2.规格：DN40 3.材质：Q235 4.连接形式、焊接方法：电弧焊 | D173: m | E173: 6 | F173: 6.96 | G173: 12% | H173: 5.82 | I173: 34.91
A174: 153 | B174: 管道压力试验 | C174: 1.规格、型号：DN50以下 2.压力等级：低压 3.管内介质：水 | D174: m | E174: 101.1 | F174: 3.89 | G174: 12% | H174: 3.25 | I174: 328.78
A175: 154 | B175: 管道系统吹扫 | C175: 1.规格、型号：DN50以下 2.管内介质：水 | D175: m | E175: 101.1 | F175: 2.87 | G175: 12% | H175: 2.40 | I175: 242.57
A176: 155 | B176: 低压碳钢管件 | C176: 1.名称：钢制弯头 2.规格：DN20 3.材质：Q235 4.连接方式：电弧焊 | D176: 个 | E176: 22 | F176: 20.29 | G176: 12% | H176: 16.96 | I176: 373.17
A177: 156 | B177: 低压碳钢管件 | C177: 1.名称：钢制三通 2.规格：DN20/DN20 3.材质：Q235 4.连接方式：电弧焊 | D177: 个 | E177: 3 | F177: 21.84 | G177: 12% | H177: 18.26 | I177: 54.77
A178: 157 | B178: 低压碳钢管件 | C178: 1.名称：钢制三通 2.规格：DN32/DN20 3.材质：Q235 4.连接方式：电弧焊 | D178: 个 | E178: 1 | F178: 37.02 | G178: 12% | H178: 30.95 | I178: 30.95
A179: 158 | B179: 低压碳钢管件 | C179: 1.名称：钢制三通 2.规格：DN40/DN20 3.材质：Q235 4.连接方式：电弧焊 | D179: 个 | E179: 1 | F179: 46.64 | G179: 12% | H179: 38.99 | I179: 38.99
A180: 159 | B180: 低压碳钢管件 | C180: 1.名称：钢制异径管 2.规格：DN32/DN20 3.材质：Q235 4.连接方式：电弧焊 | D180: 个 | E180: 1 | F180: 35.22 | G180: 12% | H180: 29.44 | I180: 29.44
A181: 160 | B181: 低压碳钢管件 | C181: 1.名称：钢制异径管 2.规格：DN40/DN32 3.材质：Q235 4.连接方式：电弧焊 | D181: 个 | E181: 1 | F181: 41.94 | G181: 12% | H181: 35.06 | I181: 35.06
A182: 161 | B182: 低压螺纹阀门 | C182: 1.名称：螺纹截止阀 2.材质：按设计 3.型号、规格：DN20 4.连接形式：螺纹连接 | D182: 个 | E182: 6 | F182: 33.93 | G182: 12% | H182: 28.37 | I182: 170.19
A183: 162 | B183: 低压碳钢管件 | C183: 1.名称：单头外丝接头 2.材质：Q235 3.规格：DN20 4.连接方式：电弧焊 | D183: 个 | E183: 12 | F183: 18.54 | G183: 12% | H183: 15.50 | I183: 185.99
A184: 163 | B184: 低压螺纹阀门 | C184: 1.名称：螺纹截止阀 2.材质：按设计 3.型号、规格：DN40 4.连接形式：螺纹连接 | D184: 个 | E184: 1 | F184: 50.49 | G184: 12% | H184: 42.21 | I184: 42.21
A185: 164 | B185: 低压碳钢管件 | C185: 1.名称：单头外丝接头 2.材质：Q235 3.规格：DN40 4.连接方式：电弧焊 | D185: 个 | E185: 2 | F185: 39.44 | G185: 12% | H185: 32.97 | I185: 65.94
A186: 165 | B186: 低压碳钢管件 | C186: 1.名称：双头外丝接头 2.材质：Q235 3.规格：DN40 4.连接方式：电弧焊 | D186: 个 | E186: 1 | F186: 39.83 | G186: 12% | H186: 33.30 | I186: 33.30
A187: 166 | B187: 低压碳钢管件 | C187: 1.名称：螺纹活接头 2.材质：Q235 3.规格：DN40 4.连接方式：电弧焊 | D187: 个 | E187: 1 | F187: 41.34 | G187: 12% | H187: 34.56 | I187: 34.56
A188: 167 | B188: 套管制作与安装 | C188: 1.名称：一般穿墙套管制作安装 2.材质：Q235 3.规格：DN50 | D188: 个 | E188: 3 | F188: 23.25 | G188: 12% | H188: 19.44 | I188: 58.31
A189: 168 | B189: 手工除锈 | C189: 1.除锈等级：St2 2.除锈内容：管道外表面 | D189: m2 | E189: 8.97 | F189: 2.78 | G189: 12% | H189: 2.32 | I189: 20.85
A190: 169 | B190: 埋地管道刷油 | C190: 1.油防腐方式：三油两布防腐，具体为环氧沥青底漆-面漆-玻璃丝布-面漆-玻璃丝布-面漆-面漆 2.漆膜厚度：干膜厚度＞0.4mm | D190: m2 | E190: 8.67 | F190: 71.35 | G190: 12% | H190: 59.65 | I190: 517.15
A191: 170 | B191: 明敷管道刷油 | C191: 1.油防腐方式：C53-31红丹醇酸防腐漆两遍及C04-42绿色醇酸磁漆两遍 2.漆膜厚度：按设计 | D191: m2 | E191: 0.3 | F191: 20.77 | G191: 12% | H191: 17.36 | I191: 5.21
A192: 171 | B192: 挖沟槽土方 | C192: 1.土壤类别：按设计 2.挖土深度：按设计 | D192: m3 | E192: 51.3 | F192: 3.49 | G192: 12% | H192: 2.92 | I192: 149.67
A193: 172 | B193: 回填方 | C193: 1.回填形式：沟槽回填 2.回填方式：就地回填，夯填 | D193: m3 | E193: 51.3 | F193: 14.29 | G193: 12% | H193: 11.95 | I193: 612.85
A194: 173 | B194: 混凝土阀门井 | C194: 1.名称：混凝土矩形阀门井 2.图集：05S502 3.井盖、井圈材质及规格：按设计 | D194: 座 | E194: 1 | F194: 10957.73 | G194: 12% | H194: 9160.66 | I194: 9160.66
A195: 2.2 | B195: 半成品库生活给水系统
A196: 174 | B196: 塑料管 | C196: 1.名称：PE型钢塑给水管 2.安装部位：室内 3.介质：生活水 4.规格、压力等级：DN15 5.连接形式：电热熔 6.压力试验及吹洗设计要求：按设计 | D196: m | E196: 27.2 | F196: 47.35 | G196: 12% | H196: 39.58 | I196: =H196*E196 -> 1076.70
A197: 175 | B197: 塑料管 | C197: 1.名称：PE型钢塑给水管 2.安装部位：室内 3.介质：生活水 4.规格、压力等级：DN25 5.连接形式：电热熔 6.压力试验及吹洗设计要求：按设计 | D197: m | E197: 21.65 | F197: 49.08 | G197: 12% | H197: 41.03 | I197: 888.32
A198: 176 | B198: 螺纹阀门 | C198: 1.名称：螺纹截止阀 2.材质：按设计 3.规格、压力等级：DN25 4.连接形式：电热熔 | D198: 个 | E198: 1 | F198: 19.7 | G198: 12% | H198: 16.47 | I198: 16.47
A199: 177 | B199: 水表 | C199: 1.名称：螺纹水表 2.型号、规格：DN25 3.连接形式：螺纹连接 4.安装部位：室外: | D199: 个 | E199: 1 | F199: 89.05 | G199: 12% | H199: 74.45 | I199: 74.45
A200: 178 | B200: 挖沟槽土方 | C200: 1.土壤类别：按设计 2.挖土深度：按设计 | D200: m3 | E200: 29.6 | F200: 3.49 | G200: 12% | H200: 2.92 | I200: 86.36
... 558 more rows

Sheet Sheet2

Sheet Sheet3
